bitfinex/quotes_SOLUSD_20250728
["timestamp","ask_amount","ask_price","bid_price","bid_amount"]
[1753709675208,0.72,190.02,189.99,0.06]
[1753709675414,0.72,190.01,189.99,0.06]
[1753709675745,40.6,190.05,189.99,0.06]
[1753709676041,40.6,190.06,190.03,15.73587315]
[1753709676355,40.6,190.08,190.03,15.73587315]
[1753709676533,41.32,190.08,190.03,15.73587315]
[1753709676916,0.72,190.07,190.03,15.73587315]
[1753709677117,0.72,190.06,190.01,15.73587315]
[1753709677419,0.14216157,190.12,190.05,15.73587315]
[1753709677618,4.9765619,190.14,190.1,15.73587315]
[1753709677823,43.9691619,190.14,190.11,15.73587315]
[1753709678043,41.3,190.14,190.11,15.73587315]
[1753709678242,41.3,190.14,190.05,0.68]
[1753709678443,15.73587315,190.16,190.11,15.73587315]
[1753709678650,15.73587315,190.16,190.14,15.73587315]
[1753709678651,40.56,190.16,190.14,15.73587315]
[1753709678821,40.56,190.16,190.13,15.73587315]
[1753709679236,40.56,190.16,190.15,15.73587315]
[1753709679418,1.598,190.2,190.15,15.73587315]
[1753709679750,1.598,190.2,190.17,15.73587315]
[1753709679751,43.9341019,190.2,190.17,15.73587315]
[1753709680048,4.1141019,190.19,190.1,5.26032327]
[1753709680250,16.45587315,190.18,190.1,5.26032327]
[1753709680549,4.11462621,190.17,190.09,20.99649887]
[1753709680846,15.73587315,190.11,190.0,13.15773087]
[1753709681147,15.73587315,190.09,190.03,15.73587315]
[1753709681345,15.73587315,190.08,190.01,5.2628809]
[1753709681526,15.73587315,190.07,190.02,15.73587315]
[1753709681730,40.52,190.09,190.04,15.73587315]
[1753709681927,40.52,190.09,190.05,15.73587315]
[1753709682135,41.24,190.09,190.05,15.73587315]
[1753709682331,16.45587315,190.08,190.03,15.73587315]
[1753709682516,16.45587315,190.07,190.02,0.06]
[1753709682729,15.73587315,190.06,190.02,0.06]
[1753709682932,0.72,190.06,190.02,0.06]
[1753709683176,0.72,190.06,190.02,15.79587315]
[1753709683819,0.72,190.06,190.02,0.06]
[1753709684013,0.72,190.05,190.02,0.06]
[1753709684213,15.73587315,190.06,190.02,0.06]
[1753709684441,16.45587315,190.07,190.02,15.79587315]
[1753709684826,0.72,190.07,190.02,15.79587315]
[1753709685055,15.73587315,190.08,190.02,15.79587315]
[1753709685230,40.52,190.09,190.04,15.73587315]
[1753709685231,15.73587315,190.09,190.04,15.73587315]
[1753709685429,7.30852314,190.11,190.02,5.32244697]
[1753709685430,15.73587315,190.07,190.02,0.06]
[1753709685636,15.73587315,190.06,190.02,0.06]
[1753709685848,0.72,190.06,190.02,0.06]
[1753709686452,15.73587315,190.07,190.02,15.79587315]
[1753709686749,23.80888397,190.11,190.04,15.73587315]
[1753709686920,56.21587315,190.1,190.04,15.73587315]
[1753709687119,15.73587315,190.07,190.02,15.79587315]
[1753709687319,0.72,190.07,190.02,15.79587315]
[1753709687524,0.72,190.07,190.03,15.73587315]
[1753709687744,0.72,190.07,190.04,15.73587315]
[1753709687956,15.73587315,190.09,190.04,15.73587315]
[1753709688133,0.72,190.08,190.04,15.73587315]
[1753709688325,40.48,190.1,190.07,15.73587315]
[1753709688524,40.48,190.1,190.09,15.73587315]
[1753709688931,1.5938,190.19,190.09,16.41587315]
[1753709689136,40.44,190.18,190.16,15.73587315]
[1753709689349,0.72,190.17,190.14,15.73587315]
[1753709689554,0.72,190.16,190.09,0.68]
[1753709689726,0.72,190.16,190.13,15.73587315]
[1753709689927,0.72,190.15,190.1,15.73587315]
[1753709690127,0.72,190.14,190.1,15.73587315]
[1753709690327,41.14,190.13,190.06,5.26125532]
[1753709690542,41.14,190.13,190.03,0.68]
[1753709690543,15.73587315,190.08,190.03,15.73587315]
[1753709690752,0.72,190.07,190.02,15.79587315]
[1753709690934,56.15587315,190.08,190.02,0.06]
[1753709690935,15.73587315,190.05,190.02,0.06]
[1753709691351,0.72,190.05,190.02,0.06]
[1753709691658,0.72,190.04,190.02,0.06]
[1753709691961,15.73587315,190.06,190.02,0.06]
[1753709692160,15.73587315,190.07,190.02,0.06]
[1753709692542,16.45587315,190.07,190.02,0.06]
[1753709692750,16.45587315,190.06,190.02,0.06]
[1753709692949,46.6091,190.08,190.02,15.79587315]
[1753709693263,15.73587315,190.07,190.02,0.06]
[1753709693552,6.1891,190.08,190.03,15.73587315]
[1753709693754,40.5,190.07,190.02,0.06]
[1753709693960,40.5,190.07,190.04,15.73587315]
[1753709694261,40.5,190.07,190.05,15.73587315]
[1753709694562,40.46,190.09,190.06,15.73587315]
[1753709694733,40.46,190.09,190.08,15.73587315]
[1753709695725,15.73587315,190.16,190.08,15.73587315]
[1753709695930,40.44,190.13,190.11,15.73587315]
[1753709696566,0.72,190.12,190.08,15.73587315]
[1753709696732,0.72,190.11,190.06,15.73587315]
[1753709697058,15.73587315,190.08,190.02,0.06]
[1753709697257,40.44,190.07,190.03,15.73587315]
[1753709697657,0.72,190.06,190.02,0.06]
[1753709698192,0.72,190.06,190.02,15.79587315]
[1753709698466,0.72,190.05,190.02,0.06]
[1753709699156,15.73587315,190.05,190.02,0.06]
[1753709699340,0.72,190.04,190.02,0.06]
[1753709699531,40.42,190.03,190.02,0.06]
[1753709699949,41.14,190.03,190.02,0.06]
[1753709700246,40.42,190.03,190.02,0.06]
[1753709700557,41.14,190.03,190.02,0.06]
[1753709701070,16.78468397,190.09,190.02,15.79587315]
[1753709701071,0.7,190.09,190.02,15.79587315]
[1753709701363,40.36,190.09,190.08,15.73587315]
[1753709701569,0.7,190.16,190.08,15.73587315]
[1753709701770,0.03,190.21,190.15,15.73587315]
[1753709701976,0.03,190.21,190.19,15.73587315]
[1753709702366,0.03,190.21,190.13,0.69]
[1753709702571,0.73,190.21,190.17,15.73587315]
[1753709702883,0.03,190.21,190.2,15.73587315]
[1753709703376,0.03,190.21,190.2,16.42587315]
[1753709703547,0.03,190.21,190.2,42.42587315]
[1753709703746,0.03,190.23,190.22,26.0]
[1753709703948,0.03,190.23,190.22,15.73587315]
[1753709704142,0.03,190.23,190.2,15.73587315]
[1753709704449,16.43587315,190.22,190.16,15.73587315]
[1753709704657,15.73587315,190.21,190.16,15.73587315]
[1753709704866,16.43587315,190.2,190.15,15.73587315]
[1753709705062,16.43587315,190.2,190.11,5.26011256]
[1753709705063,16.43587315,190.19,190.13,15.73587315]
[1753709705264,15.73587315,190.18,190.13,15.73587315]
[1753709705466,16.43587315,190.17,190.12,15.73587315]
[1753709705711,0.7,190.16,190.13,0.06]
[1753709705878,56.89587315,190.15,190.13,0.06]
[1753709706080,15.73587315,190.14,190.13,0.06]
[1753709706383,16.43587315,190.18,190.13,0.06]
[1753709706550,40.44,190.17,190.13,15.79587315]
[1753709706752,40.44,190.17,190.14,15.73587315]
[1753709706960,40.44,190.17,190.13,0.06]
[1753709706961,0.7,190.16,190.13,0.06]
[1753709707478,15.73587315,190.14,190.13,0.06]
[1753709707975,16.43587315,190.14,190.13,0.06]
[1753709708185,33.50488026,190.14,190.13,0.06]
[1753709708378,17.06900711,190.13,190.05,15.73587315]
[1753709708579,15.73587315,190.1,190.04,21.05778588]
[1753709708760,15.73587315,190.1,190.05,15.73587315]
[1753709708958,56.85587315,190.12,190.06,15.73587315]
[1753709709256,15.73587315,190.11,190.06,15.73587315]
[1753709709468,0.7,190.1,190.06,15.73587315]
[1753709709669,0.7,190.1,190.04,0.06]
[1753709709882,0.7,190.1,190.06,15.73587315]
[1753709710054,15.73587315,190.11,190.04,0.06]
[1753709710256,15.73587315,190.11,190.06,15.73587315]
[1753709710583,16.43587315,190.1,190.04,0.06]
[1753709710885,15.73587315,190.06,190.04,0.06]
[1753709711090,15.73587315,190.05,190.04,0.06]
[1753709711451,16.43587315,190.05,190.04,0.06]
[1753709711861,46.9256,190.06,190.04,0.06]
[1753709712064,56.11587315,190.06,190.04,0.06]
[1753709712256,40.38,190.06,190.04,15.79587315]
[1753709712579,0.7,190.11,190.05,15.73587315]
[1753709712787,40.44,190.1,190.07,15.73587315]
[1753709712964,40.44,190.1,190.08,15.73587315]
[1753709713375,40.44,190.1,190.09,15.73587315]
[1753709713963,40.44,190.1,190.05,15.73587315]
[1753709713964,41.14,190.1,190.05,15.73587315]
[1753709714156,0.7,190.14,190.09,15.73587315]
[1753709714353,15.73587315,190.11,190.06,15.73587315]
[1753709714578,56.13587315,190.13,190.08,15.73587315]
[1753709714880,0.7,190.12,190.08,15.73587315]
[1753709715065,0.7,190.11,190.08,15.73587315]
[1753709715591,15.73587315,190.09,190.04,0.06]
[1753709715764,40.38,190.08,190.04,0.06]
[1753709715966,40.38,190.08,190.04,21.05788926]
[1753709716166,40.38,190.08,190.05,15.73587315]
[1753709716867,40.42,190.09,190.07,15.73587315]
[1753709717284,40.42,190.09,190.08,15.73587315]
[1753709717487,41.12,190.09,190.05,15.73587315]
[1753709717786,40.42,190.09,190.06,15.73587315]
[1753709718100,40.42,190.09,190.07,15.73587315]
[1753709718260,6.7759,190.16,190.08,15.73587315]
[1753709718462,3.40608238,190.19,190.15,15.73587315]
[1753709718661,44.16409689,190.18,190.16,15.73587315]
[1753709718880,40.38,190.18,190.15,15.73587315]
[1753709719083,0.7,190.17,190.15,15.73587315]
[1753709719457,0.7,190.2,190.1,5.26038926]
[1753709719664,6.3577,190.21,190.11,26.69]
[1753709719665,0.03,190.21,190.11,26.69]
[1753709719994,0.03,190.21,190.2,15.73587315]
[1753709720183,3.81612857,190.21,190.2,15.73587315]
[1753709720364,3.81612857,190.21,190.15,0.69]
[1753709720566,0.03,190.21,190.17,15.73587315]
[1753709720774,0.7,190.2,190.15,15.73587315]
[1753709720973,15.73587315,190.17,190.12,15.73587315]
[1753709721305,16.43587315,190.16,190.11,15.73587315]
[1753709721483,0.7,190.16,190.11,15.73587315]
[1753709721685,56.07587315,190.17,190.09,5.260666]
[1753709721686,40.34,190.17,190.15,15.73587315]
[1753709722002,40.34,190.17,190.14,15.73587315]
[1753709722183,40.34,190.17,190.16,15.73587315]
[1753709722505,0.03,190.21,190.16,15.73587315]
[1753709722808,0.73,190.21,190.12,13.14934774]
[1753709722984,0.73,190.21,190.1,26.0]
[1753709722985,0.03,190.21,190.19,15.73587315]
[1753709723183,0.03,190.21,190.2,15.73587315]
[1753709723514,0.03,190.21,190.2,16.42587315]
[1753709723967,0.03,190.21,190.2,15.73587315]
[1753709724170,0.03,190.21,190.2,16.42587315]
[1753709724367,1e-08,190.21,190.2,16.42587315]
[1753709724894,1e-08,190.21,190.2,21.6834967]
[1753709727001,1e-08,190.21,190.2,20.9934967]
[1753709727387,1e-08,190.21,190.2,21.6834967]
[1753709728244,1e-08,190.21,190.2,22.20925905]
[1753709728402,1e-08,190.21,190.2,21.6834967]
[1753709729474,1e-08,190.21,190.2,61.8634967]
[1753709729677,1e-08,190.21,190.2,20.9934967]
[1753709730206,1e-08,190.21,190.2,21.6834967]
[1753709730723,1e-08,190.21,190.2,22.20925905]
[1753709731078,0.03,190.25,190.2,35.63764107]
[1753709731306,1e-08,190.25,190.24,15.73587315]
[1753709731483,1e-08,190.25,190.24,55.85587315]
[1753709731673,1e-08,190.25,190.24,56.51587315]
[1753709732099,0.03,190.32,190.27,26.0]
[1753709732297,0.03,190.32,190.31,31.4717463]
[1753709732721,0.03,190.32,190.31,15.73587315]
[1753709733121,0.03,190.32,190.31,20.99045777]
[1753709733521,0.1,190.35,190.34,15.73587315]
[1753709735109,0.1,190.35,190.34,20.98962958]
[1753709735921,0.1,190.35,190.34,21.64962958]
[1753709736106,0.1,190.35,190.34,20.98962958]
[1753709736427,0.1,190.35,190.34,21.64962958]
[1753709736615,0.03,190.38,190.34,34.78402066]
[1753709736817,1e-08,190.38,190.37,41.73587315]
[1753709737133,1e-08,190.38,190.37,81.99587315]
[1753709737313,1e-08,190.38,190.37,104.97780876]
[1753709737503,0.1,190.41,190.38,0.28432314]
[1753709737820,0.1,190.41,190.4,41.73587315]
[1753709738223,0.03,190.42,190.4,42.39587315]
[1753709738426,6.7716,190.51,190.43,26.0]
[1753709738725,0.66,190.51,190.43,58.1317463]
[1753709738926,0.66,190.51,190.5,15.73587315]
[1753709739521,0.66,190.55,190.5,20.98521698]
[1753709739723,6.5485,190.57,190.54,15.73587315]
[1753709739929,0.66,190.57,190.56,15.73587315]
[1753709740234,0.66,190.6,190.56,15.73587315]
[1753709740542,0.1,190.55,190.54,26.0]
[1753709741222,0.1,190.55,190.54,5.24824183]
[1753709741416,0.1,190.55,190.54,5.90824183]
[1753709741617,0.1,190.55,190.54,21.64411498]
[1753709741816,0.1,190.55,190.54,20.98411498]
[1753709742020,0.1,190.55,190.54,15.73587315]
[1753709742224,0.1,190.55,190.54,41.73587315]
[1753709742711,0.1,190.55,190.54,42.39587315]
[1753709743110,0.1,190.55,190.54,41.73587315]
[1753709743334,0.1,190.55,190.54,46.98411498]
[1753709744416,0.76,190.55,190.54,41.73587315]
[1753709744621,0.1,190.55,190.54,46.98411498]
[1753709744822,0.76,190.55,190.54,15.73587315]
[1753709745226,0.76,190.55,190.5,5.24934383]
[1753709745545,15.73587315,190.53,190.44,5.25099768]
[1753709745782,16.39587315,190.52,190.44,5.25099768]
[1753709745920,16.39587315,190.51,190.46,15.73587315]
[1753709746116,0.66,190.5,190.47,15.73587315]
[1753709746516,0.66,190.5,190.43,40.16]
[1753709746862,15.73587315,190.49,190.44,15.73587315]
[1753709747082,0.66,190.48,190.44,15.73587315]
[1753709747440,0.66,190.47,190.45,15.73587315]
[1753709747643,0.66,190.47,190.4,40.16]
[1753709747877,0.66,190.47,190.37,40.14]
[1753709748064,0.66,190.47,190.43,15.73587315]
[1753709748264,0.66,190.47,190.45,15.73587315]
[1753709748780,0.66,190.46,190.45,15.73587315]
[1753709748950,16.39587315,190.46,190.36,5.25320445]
[1753709749136,15.73587315,190.44,190.38,15.73587315]
[1753709749343,0.66,190.43,190.38,15.73587315]
[1753709749553,0.66,190.42,190.4,15.73587315]
[1753709749772,0.66,190.41,190.4,15.73587315]
[1753709750281,0.03,190.48,190.4,15.73587315]
[1753709750451,17.44468397,190.47,190.35,66.12]
[1753709750646,15.73587315,190.45,190.4,15.73587315]
[1753709750855,16.78468397,190.47,190.38,15.73587315]
[1753709750856,16.39587315,190.44,190.38,15.73587315]
[1753709751074,16.39587315,190.44,190.35,66.12]
[1753709751075,15.73587315,190.44,190.39,15.73587315]
[1753709751270,0.66,190.43,190.35,26.0]
[1753709751458,15.73587315,190.41,190.36,15.73587315]
[1753709751759,0.66,190.4,190.36,15.73587315]
[1753709751965,0.66,190.43,190.38,15.73587315]
[1753709752176,0.66,190.43,190.39,15.73587315]
[1753709752385,16.78468397,190.46,190.4,15.73587315]
[1753709752577,16.39587315,190.45,190.4,15.73587315]
[1753709752752,0.66,190.44,190.41,15.73587315]
[1753709753256,16.39587315,190.47,190.42,15.73587315]
[1753709753456,16.39587315,190.47,190.41,15.73587315]
[1753709753457,16.39587315,190.46,190.41,15.73587315]
[1753709753686,0.66,190.46,190.42,15.73587315]
[1753709753858,40.11,190.48,190.4,5.25207147]
[1753709753859,0.03,190.48,190.44,15.73587315]
[1753709754159,0.66,190.47,190.44,15.73587315]
[1753709754361,0.66,190.46,190.43,15.73587315]
[1753709754599,0.66,190.45,190.43,15.73587315]
[1753709754809,0.66,190.44,190.39,15.73587315]
[1753709754968,0.66,190.44,190.38,41.73587315]
[1753709754969,0.66,190.43,190.38,41.73587315]
[1753709755181,0.66,190.42,190.38,15.73587315]
[1753709755487,0.66,190.41,190.38,15.73587315]
[1753709755871,0.66,190.4,190.37,15.73587315]
[1753709756077,16.78468397,190.44,190.39,15.73587315]
[1753709756261,16.78468397,190.44,190.36,5.91318207]
[1753709756262,16.78468397,190.44,190.4,15.73587315]
[1753709756467,15.73587315,190.42,190.37,15.73587315]
[1753709756669,0.66,190.41,190.37,15.73587315]
[1753709756896,0.66,190.41,190.38,15.73587315]
[1753709757702,0.66,190.41,190.36,31.25305259]
[1753709757703,0.66,190.41,190.36,26.0]
[1753709757870,15.73587315,190.43,190.36,26.0]
[1753709757871,15.73587315,190.43,190.37,15.73587315]
[1753709758069,0.66,190.43,190.39,15.73587315]
[1753709758478,0.66,190.43,190.4,15.73587315]
[1753709758864,16.78468397,190.45,190.4,15.73587315]
[1753709759094,0.66,190.45,190.4,15.73587315]
[1753709759306,0.66,190.45,190.41,15.73587315]
[1753709759682,0.66,190.45,190.4,5.25207167]
[1753709759912,0.03,190.48,190.44,15.73587315]
[1753709760072,0.03,190.48,190.47,15.73587315]
[1753709760417,0.03,190.48,190.43,65.96]
[1753709760764,0.03,190.48,190.47,15.73587315]
[1753709761209,0.03,190.48,190.47,16.41587315]
[1753709761404,0.03,190.48,190.47,16.70019629]
[1753709761628,0.03,190.52,190.48,0.28432314]
[1753709761902,0.1,190.55,190.52,26.0]
[1753709762146,3.74329824,190.63,190.54,15.73587315]
[1753709762290,9.82607473,190.66,190.51,0.28432314]
[1753709762291,6.4581,190.66,190.62,15.73587315]
[1753709762490,4.41611898,190.65,190.63,15.73587315]
[1753709762705,0.67,190.64,190.61,15.73587315]
[1753709762943,0.03,190.56,190.51,0.96432314]
[1753709763107,0.03,190.56,190.46,6.4553]
[1753709763108,0.03,190.56,190.55,41.73587315]
[1753709763690,0.7,190.56,190.52,15.73587315]
[1753709763894,0.67,190.55,190.51,41.73587315]
[1753709764296,0.67,190.54,190.51,15.73587315]
[1753709764492,0.03,190.56,190.51,15.73587315]
[1753709764793,0.67,190.55,190.5,15.73587315]
[1753709765016,0.03,190.56,190.48,45.229895]
[1753709765017,0.03,190.56,190.52,15.73587315]
[1753709765334,0.03,190.56,190.48,45.229895]
[1753709765556,0.03,190.56,190.52,15.73587315]
[1753709765557,3.78127306,190.56,190.52,15.73587315]
[1753709766021,15.73587315,190.53,190.44,5.25099768]
[1753709766221,16.40587315,190.52,190.46,15.73587315]
[1753709766397,16.40587315,190.52,190.47,26.0]
[1753709766594,16.78468397,190.5,190.34,1.5528]
[1753709766813,0.28432314,190.53,190.34,1.5528]
[1753709766814,15.73587315,190.47,190.41,15.73587315]
[1753709767019,4.42697392,190.46,190.42,15.73587315]
[1753709767303,3.75798096,190.45,190.4,26.0]
[1753709767511,3.75798096,190.45,190.39,26.0]
[1753709767512,0.67,190.45,190.42,15.73587315]
[1753709767726,0.67,190.44,190.4,26.0]
[1753709767920,0.28432314,190.5,190.28,1.5503]
[1753709767921,4.43126053,190.43,190.38,15.73587315]
[1753709768099,16.78468397,190.48,190.42,15.73587315]
[1753709768296,3.76239363,190.47,190.39,0.68]
[1753709768498,3.76239363,190.46,190.42,15.73587315]
[1753709768716,3.76239363,190.45,190.42,15.73587315]
[1753709768919,17.45468397,190.48,190.44,48.23816113]
[1753709769121,0.67,190.47,190.44,48.23816113]
[1753709769306,39.94,190.5,190.46,15.73587315]
[1753709769819,0.67,190.49,190.47,15.73587315]
[1753709770212,39.94,190.5,190.48,15.73587315]
[1753709770427,17.06900711,190.53,190.49,15.73587315]
[1753709770611,0.03,190.56,190.52,15.73587315]
[1753709770808,0.03,190.56,190.55,15.73587315]
[1753709772022,0.03,190.56,190.55,20.98383956]
[1753709772209,0.03,190.56,190.55,47.66383956]
[1753709772406,1e-08,190.56,190.55,47.66383956]
[1753709772606,1e-08,190.56,190.55,21.9481627]
[1753709773599,1e-08,190.56,190.55,47.9481627]
[1753709773837,1e-08,190.56,190.55,21.9481627]
[1753709774831,1e-08,190.56,190.55,47.9481627]
[1753709775426,3.39847666,190.66,190.58,26.0]
[1753709775629,3.39847666,190.67,190.65,15.73587315]
[1753709775843,7.74026403,190.68,190.66,15.73587315]
[1753709776012,20.95316063,190.68,190.67,15.73587315]
[1753709776337,3.49847666,190.68,190.67,15.73587315]
[1753709776507,0.77,190.68,190.66,15.73587315]
[1753709776832,0.67,190.67,190.64,15.73587315]
[1753709777033,0.67,190.66,190.64,15.73587315]
[1753709777247,0.67,190.65,190.61,15.73587315]
[1753709777545,3.39847666,190.66,190.64,15.73587315]
[1753709777736,3.49847666,190.68,190.65,41.73587315]
[1753709777928,0.1,190.68,190.67,15.73587315]
[1753709778130,0.1,190.68,190.67,20.9805367]
[1753709779022,0.1,190.68,190.67,21.6605367]
[1753709779215,0.03,190.72,190.7,26.0]
[1753709779452,0.03,190.72,190.71,15.73587315]
[1753709779760,0.67,190.71,190.68,15.73587315]
[1753709780053,0.03,190.72,190.7,15.73587315]
[1753709780260,0.03,190.72,190.67,31.24466355]
[1753709780434,0.03,190.72,190.71,15.73587315]
[1753709781250,0.03,190.72,190.71,41.73587315]
[1753709781425,0.03,190.72,190.71,42.41587315]
[1753709781747,0.03,190.72,190.71,58.1517463]
[1753709782051,0.03,190.72,190.71,37.39530982]
[1753709782652,0.03,190.72,190.71,20.97943667]
[1753709782954,0.03,190.72,190.71,15.73587315]
[1753709783323,0.7,190.72,190.69,41.73587315]
[1753709783647,0.67,190.71,190.69,26.0]
[1753709783857,0.67,190.7,190.63,5.24576404]
[1753709784031,17.06900711,190.68,190.53,0.68]
[1753709784221,15.73587315,190.64,190.59,15.73587315]
[1753709784420,0.67,190.63,190.59,15.73587315]
[1753709784672,0.67,190.62,190.54,5.24824183]
[1753709784871,0.67,190.62,190.58,15.73587315]
[1753709785177,16.78468397,190.66,190.61,15.73587315]
[1753709785333,0.67,190.65,190.54,19.04884642]
[1753709785537,0.67,190.65,190.62,15.73587315]
[1753709785751,40.47,190.67,190.64,15.73587315]
[1753709785940,23.53360711,190.69,190.64,15.73587315]
[1753709785941,0.67,190.66,190.64,15.73587315]
[1753709786159,40.45,190.68,190.65,15.73587315]
[1753709786357,0.67,190.67,190.63,15.73587315]
[1753709786666,0.67,190.66,190.63,15.73587315]
[1753709787071,0.67,190.65,190.63,15.73587315]
[1753709787362,0.67,190.64,190.6,15.73587315]
[1753709787566,0.67,190.64,190.61,15.73587315]
[1753709787746,0.67,190.64,190.58,26.0]
[1753709787747,6.74892314,190.69,190.63,15.73587315]
[1753709787948,17.45468397,190.68,190.65,15.73587315]
[1753709788154,0.67,190.68,190.65,15.73587315]
[1753709788358,0.67,190.68,190.63,5.24574777]
[1753709788553,0.67,190.68,190.65,15.73587315]
[1753709788758,0.7,190.72,190.67,15.73587315]
[1753709788964,2.1702,190.71,190.69,15.73587315]
[1753709789158,0.03,190.72,190.7,15.73587315]
[1753709789382,0.03,190.72,190.71,15.73587315]
[1753709790246,0.03,190.72,190.71,20.97943667]
[1753709790652,0.03,190.72,190.71,46.97943667]
[1753709790880,0.03,190.72,190.71,41.73587315]
[1753709791082,0.69,190.72,190.69,26.0]
[1753709791281,0.66,190.71,190.69,41.73587315]
[1753709791586,0.03,190.72,190.69,41.73587315]
[1753709791760,0.03,190.72,190.67,15.73587315]
[1753709791761,0.66,190.71,190.67,15.73587315]
[1753709792070,15.73587315,190.69,190.64,41.73587315]
[1753709792295,33.18055712,190.68,190.63,15.73587315]
[1753709792444,39.78,190.71,190.67,15.73587315]
[1753709792445,1.5597,190.71,190.67,15.73587315]
[1753709792648,39.83,190.72,190.69,15.73587315]
[1753709792844,39.83,190.72,190.7,15.73587315]
[1753709793593,0.66,190.71,190.69,15.73587315]
[1753709793885,32.52055712,190.7,190.65,26.0]
[1753709794049,0.66,190.7,190.66,15.73587315]
[1753709794387,0.03,190.68,190.64,15.73587315]
[1753709794557,0.66,190.67,190.62,15.73587315]
[1753709795103,17.44468397,190.66,190.61,15.73587315]
[1753709795582,16.39587315,190.65,190.6,15.73587315]
[1753709795790,16.39587315,190.65,190.58,26.0]
[1753709795944,56.56468397,190.65,190.61,15.73587315]
[1753709796150,6.2913,190.67,190.62,15.73587315]
[1753709796344,0.69,190.68,190.66,15.73587315]
[1753709796345,0.03,190.68,190.66,15.73587315]
[1753709796550,0.03,190.68,190.65,15.73587315]
[1753709796786,0.69,190.68,190.64,15.73587315]
[1753709796979,0.69,190.68,190.65,15.73587315]
[1753709797183,0.03,190.68,190.67,15.73587315]
[1753709798471,0.03,190.68,190.66,15.73587315]
[1753709798873,0.03,190.68,190.67,15.73587315]
[1753709799265,0.03,190.68,190.67,41.73587315]
[1753709800257,0.03,190.68,190.67,21.6605367]
[1753709800456,0.03,190.72,190.7,26.0]
[1753709800674,0.03,190.72,190.71,15.73587315]
[1753709801184,0.03,190.72,190.71,16.41587315]
[1753709802366,0.03,190.72,190.71,21.65943667]
[1753709802882,0.03,190.72,190.71,20.97943667]
[1753709803288,0.03,190.72,190.71,21.65943667]
[1753709804369,0.03,190.72,190.71,37.39530982]
[1753709805494,1e-08,190.72,190.71,37.67963296]
[1753709805699,1e-08,190.72,190.71,38.20398931]
[1753709805893,1e-08,190.72,190.71,37.67963296]
[1753709806192,1e-08,190.72,190.71,20.97943667]
[1753709807595,1e-08,190.72,190.71,37.67963296]
[1753709807978,1e-08,190.72,190.71,36.71530982]
[1753709808578,1e-08,190.72,190.71,20.97943667]
[1753709809292,1e-08,190.72,190.71,15.73587315]
[1753709809496,1e-08,190.72,190.71,41.73587315]
[1753709809703,0.66000001,190.72,190.71,15.73587315]
[1753709810004,0.66000001,190.72,190.66,5.24493863]
[1753709810172,0.66000001,190.72,190.67,15.73587315]
[1753709810173,16.39587316,190.72,190.67,15.73587315]
[1753709810372,0.66,190.71,190.64,39.74]
[1753709810573,16.39587315,190.71,190.65,41.73587315]
[1753709810790,0.66,190.71,190.68,15.73587315]
[1753709811000,0.66,190.7,190.66,15.73587315]
[1753709811172,15.73587316,190.72,190.67,15.73587315]
[1753709811173,0.66,190.69,190.67,15.73587315]
[1753709811382,0.66000001,190.72,190.68,15.73587315]
[1753709811715,0.66000001,190.72,190.7,15.73587315]
[1753709812072,16.39587315,190.71,190.65,15.73587315]
[1753709812272,15.73587315,190.69,190.64,15.73587315]
[1753709812495,0.66,190.68,190.64,15.73587315]
[1753709812698,1e-08,190.72,190.67,15.73587315]
[1753709812699,0.66000001,190.72,190.67,15.73587315]
[1753709812872,0.66000001,190.72,190.69,15.73587315]
[1753709813069,1e-08,190.72,190.71,15.73587315]
[1753709813505,16.78468397,190.71,190.63,26.0]
[1753709813714,15.73587315,190.7,190.65,41.73587315]
[1753709814014,0.66000001,190.72,190.69,15.73587315]
[1753709814174,1e-08,190.72,190.71,15.73587315]